Cogmind - Beta 14 @@@ ROGUE MODE // 2025.03.21 @ 13:55:08 Player: Lava Result: Destroyed by S-10 Pest with Light Assault Rifle Performance ------------- Evolutions (0) 0 Regions Visited (2) 400 Robots Destroyed (18) 90 Value Destroyed (405) 405 Prototype IDs (0) 0 Alien Tech Used (0) 0 Bonus (92) 92 TOTAL SCORE: 987 Bonus ------- Follower Combat Kills 92 Cogmind --------- Core Integrity 0/250 Matter 290/300 Energy 245/250 System Corruption 1% Temperature Cool (0) Movement Walking (190) Ox1 Location -10/Mines Parts ------- > --- POWER (1) -------- Ion Engine > --- PROPULSION (2) --- Aluminum Leg Aluminum Leg > --- UTILITY (2) ------ Large Storage Unit Targeting Computer > --- WEAPON (2) ------- Light Assault Rifle Makeshift Spear > --- INVENTORY (15) --- Light Nuclear Core Aluminum Leg Structural Scanner Visual Processing Unit Sensor Array Signal Interpreter Signal Interpreter Terrain Scanner Terrain Scanner Propulsion Shielding Propulsion Shielding Utility Shielding Small Laser Light Assault Rifle Hammer Peak State ------------ > --- POWER ------------ Ion Engine > --- PROPULSION ------- Aluminum Leg Aluminum Leg > --- UTILITY ---------- Large Storage Unit Targeting Computer > --- WEAPON ----------- Light Assault Rifle Makeshift Spear > --- INVENTORY -------- Light Nuclear Core Aluminum Leg Structural Scanner Visual Processing Unit Sensor Array Signal Interpreter Signal Interpreter Terrain Scanner Terrain Scanner Propulsion Shielding Propulsion Shielding Utility Shielding Small Laser Light Assault Rifle Hammer [Rating: 11] Favorites ----------- Power Ion Engine Engine Ion Engine Propulsion Light Treads Treads Light Treads Leg Aluminum Leg Utility Targeting Computer Storage Large Storage Unit Processor Targeting Computer Protection Propulsion Shielding Weapon Light Assault Rifle Energy Gun Small Laser Ballistic Gun Light Assault Rifle Impact Weapon Hammer Piercing Weapon Makeshift Spear Build | -11 -10 -10 ------- Run | Yrd Mat Min Slots Evolved . | . . . Power . | . . . Propulsion . | . . . Utility . | . . . Weapon . | . . . Parts Attached 21 | 6 9 6 Power 3 | 1 2 . Engine 3 | 1 2 . Core . | . . . Reactor . | . . . Propulsion 4 | 2 2 . Treads 2 | 2 . . Leg 2 | . 2 . Wheel . | . . . Hover . | . . . Flight . | . . . Utility 4 | 1 3 . Device . | . . . Storage 2 | 1 1 . Processor 1 | . 1 . Hackware . | . . . Protection 1 | . 1 . Artifact . | . . . Weapon 10 | 2 2 6 Energy Gun 1 | . 1 . Energy Cannon . | . . . Ballistic Gun 7 | 2 . 5 Ballistic Cannon . | . . . Launcher . | . . . Special Weapon . | . . . Impact Weapon 1 | . 1 . Slashing Weapon . | . . . Piercing Weapon 1 | . . 1 Special Melee Weapon . | . . . Unidentified Prototypes . | . . . Parts Lost 3 | . 3 . Power 1 | . 1 . Propulsion 1 | . 1 . Utility . | . . . Weapon 1 | . 1 . Highest Loss Streak 2 | . 2 . To Critical Strikes . | . . . Average Slot Usage (%) 92 | . 89 100 Engine 13 | . 13 14 Treads 12 | . 17 . Leg 8 | . . 28 Storage 14 | . 14 14 Processor 13 | . 13 14 Energy Gun 9 | . 11 3 Ballistic Gun 14 | . 11 21 Impact Weapon 4 | . 4 1 Peak Build Rating 11 | 6 8 11 Average Rating 7 | 3 6 8 On Entrance 4 | . 6 8 Naked Turns . | . . . Heaviest Build 28 | 13 28 28 Greatest Support 40 | 40 40 20 Greatest Overweight (x) 1 | 1 1 1 Average Overweight (x) . | . . 1 Largest Inventory Capacity 15 | 8 15 15 Average Capacity 14 | 7 14 15 Most Carried 15 | 7 15 15 Average Carried 10 | 4 9 15 Final Capacity 15 | 8 15 15 Final Carried 15 | 6 15 15 Class Distribution -------------------- 100% | Mutant Dominant Class ---------------- Mutant | -10/Materials Mutant | -10/Mines Resources | -11 -10 -10 ----------- Run | Yrd Mat Min Matter Collected 590 | 246 207 137 Remotely . | . . . Salvage Created 481 | . 360 121 Parts 39 | . 30 9 Haulers Intercepted . | . . . Recyclers Shooed . | . . . Parts Field Recycled . | . . . Retrieved Matter . | . . . Parts Self-Destructed . | . . . Prevented . | . . . Kills | -11 -10 -10 ------- Run | Yrd Mat Min Combat Hostiles Destroyed 15 | . 9 6 Guns 15 | . 9 6 Classes Destroyed 4 | . 4 . Operator 1 | . 1 . Watcher 2 | . 2 . Swarmer 8 | . 3 5 Grunt 7 | . 6 1 Best Kill Streak 5 | . 3 5 Combat Bots Only 5 | . 3 5 Max Kills in Single Turn 1 | . 1 1 Gunslinging . | . . . Exploded . | . . . Melee . | . . . Uniques/NPCs Destroyed . | . . . Combat | -11 -10 -10 -------- Run | Yrd Mat Min Hostile Shots Fired 133 | . 75 58 Missed 25 | . 11 14 Damage Taken 1087 | . 703 384 Core 256 | . 142 114 Absorbed by Shields . | . . . Core Remaining (%) 100 | 100 . . Volleys Fired 79 | . 63 16 Largest 2 | . 2 2 Hottest 60 | . 60 60 Shots Fired 155 | . 123 32 Gun 155 | . 123 32 Cannon . | . . . Launcher . | . . . Special . | . . . Kinetic 114 | . 83 31 Thermal 41 | . 40 1 Explosive . | . . . Electromagnetic . | . . . Robot Hit Streak 10 | . 10 7 Robot Miss Streak 6 | . 6 3 Penetration Max . | . . . Secondary Targets 2 | . 1 1 Max Gunslinging Chain 1 | . 1 1 Shots Hit Robots 93 | . 73 20 Core Hits 36 | . 26 10 Critical Kills . | . . . Critical Parts Destroyed . | . . . Critical Strikes . | . . . Melee Attacks 25 | . 22 3 Impact 22 | . 22 . Slashing . | . . . Piercing 3 | . . 3 Sneak Attacks . | . . . Combat Hostiles . | . . . Follow-up Attacks . | . . . Damage Inflicted 878 | . 695 183 Guns 833 | . 677 156 Cannons . | . . . Explosions . | . . . Melee 38 | . 15 23 Ramming 7 | . 3 4 Kinetic 569 | . 423 146 Thermal 264 | . 254 10 Explosive . | . . . Electromagnetic . | . . . Impact 15 | . 15 . Slashing . | . . . Piercing 23 | . . 23 Highest Corruption 1 | . 1 1 Average Corruption 1 | . 1 1 Corruption Purged . | . . . Corruption Blocked . | . . . Effects 17 | . 12 5 Message Errors 4 | . 3 1 Matter Fused 7 | . 4 3 Heat Flow Errors 2 | . 2 . Energy Discharges 2 | . 2 . Data Loss (minor) 2 | . 1 1 Overload Shots . | . . . Overflow Damage 3 | . . 3 Projectiles . | . . . Explosions . | . . . Melee 3 | . . 3 Knockbacks . | . . . Impact . | . . . Kinetic . | . . . Secondary . | . . . Self-Inflicted Damage . | . . . Shots . | . . . Rammed 1 | . 1 . Targets Rammed 2 | . 1 1 Kicked 1 | . . 1 Crushed . | . . . Highest Temperature 233 | . 233 20 Average Temperature 41 | . 42 14 Received Heat Transfer 315 | . 297 18 Siege Activations . | . . . Robots Corrupted . | . . . Combat Hostiles . | . . . Parts Fried . | . . . Impact Corruptions . | . . . Robots Melted . | . . . Combat Hostiles . | . . . Parts Melted . | . . . Heat Transferred 600 | . 575 25 Parts Sabotaged . | . . . Parts Stolen . | . . . Parts Stripped . | . . . Power Chain Reactions . | . . . Alert | -11 -10 -10 ------- Run | Yrd Mat Min Peak Influence 195 | . 195 135 Initial . | . . . Average 45 | . 39 67 Maximum Alert Level . | . . . Low Security (%) 100 | 100 100 100 Level 1 . | . . . Level 2 . | . . . Level 3 . | . . . Level 4 . | . . . Level 5 . | . . . High Security . | . . . Max Security . | . . . Squads Dispatched 1 | . 1 . Investigation . | . . . Extermination . | . . . Reinforcement 1 | . 1 . Assault . | . . . Garrison . | . . . Intercept . | . . . Searches Triggered . | . . . Construction Impeded . | . . . Haulers Reinforced . | . . . Active Scanning Responses . | . . . Cargo Convoy Interrupts . | . . . Stealth | -11 -10 -10 --------- Run | Yrd Mat Min Distress Signals 3 | . 3 . Communications Jammed . | . . . Distress Signals . | . . . Times Spotted 44 | . 27 17 Peak Tracking Total 4 | . 4 4 Tactical Retreats 2 | . . 2 Traps | -11 -10 -10 ------- Run | Yrd Mat Min Traps Triggered 1 | . 1 . Indirectly . | . . . Trap Hack Attempts . | . . . Triggered . | . . . Disarmed . | . . . Reprogrammed . | . . . Reused . | . . . Traps Extracted . | . . . Installed . | . . . Triggered . | . . . Machines | -11 -10 -10 ---------- Run | Yrd Mat Min Machines Disabled . | . . . Max in Single Turn . | . . . Machines Repaired . | . . . Machines Dismantled . | . . . Machines Sabotaged . | . . . Overloaded Fab Kills . | . . . Hacking | -11 -10 -10 --------- Run | Yrd Mat Min Machines Accessed 3 | . 3 . Terminals 3 | . 3 . Fabricators . | . . . Repair Stations . | . . . Recycling Units . | . . . Scanalyzers . | . . . Garrison Access . | . . . Total Hacks 9 | . 9 . Successful 2 | . 2 . Failed 7 | . 7 . Catastrophic 1 | . 1 . Database Lockouts . | . . . Manual 5 | . 5 . Terminals 9 | . 9 . Fabricators . | . . . Repair Stations . | . . . Recycling Units . | . . . Scanalyzers . | . . . Garrison Access . | . . . Terminal Hacks 2 | . 2 . Branch Access Points 1 | . 1 . Terminal Index 1 | . 1 . Fabricator Hacks . | . . . Repair Station Hacks . | . . . Recycling Unit Hacks . | . . . Scanalyzer . | . . . Garrison Access Hacks . | . . . Unauthorized Hacks . | . . . Terminals . | . . . Fabricators . | . . . Repair Stations . | . . . Recycling Units . | . . . Scanalyzers . | . . . Garrison Access . | . . . Data Cores Recovered . | . . . Used . | . . . Hacking Detections 3 | . 3 . Full Trace Events . | . . . Feedback Events . | . . . Feedback Blocked . | . . . Robot Schematics Acquired . | . . . Robots Built . | . . . Authchips . | . . . Time . | . . . Total Robot Build Rating . | . . . Part Schematics Acquired . | . . . Parts Built . | . . . Authchips . | . . . Time . | . . . Total Part Build Rating . | . . . Parts Repaired . | . . . Time . | . . . Parts Recycled . | . . . Recycled Matter . | . . . Retrieved Matter . | . . . Retrieved Components . | . . . Parts Scanalyzed . | . . . Part Schematics Acquired . | . . . Parts Damaged . | . . . Bothacking | -11 -10 -10 ------------ Run | Yrd Mat Min Used RIF Installer . | . . . Robots Hacked . | . . . Non-combat . | . . . Combat . | . . . Robot Hacks Applied . | . . . Relay Couplers Released . | . . . Fabnet Peak Effective % . | . . . Robots Rewired . | . . . Allies Hacked . | . . . Hacks Repelled . | . . . Allies | -11 -10 -10 -------- Run | Yrd Mat Min Total Allies 3 | . . 3 Largest Group 3 | . . 3 Highest-Rated Group 40 | . . 40 Highest-Rated Ally 16 | . . 16 Total Orders . | . . . Ally Attacks 15 | . . 15 Total Damage 184 | . . 184 Kills 4 | . . 4 Allies Corrupted . | . . . Allies Melted . | . . . Intel | -11 -10 -10 ------- Run | Yrd Mat Min Robot Analysis Total . | . . . Derelict Logs Recovered 1 | . . 1 Drone Launches . | . . . Drone Recoveries . | . . . Exploration | -11 -10 -10 ------------- Run | Yrd Mat Min Turns Passed 2579 | 92 1769 718 Spaces Moved 1088 | 49 693 346 Core 7 | 7 . . Treads 718 | 42 676 . Legs 363 | . 17 346 Wheels . | . . . Hover . | . . . Flight . | . . . Fastest Speed 50 | 50 160 190 Average Speed 201 | 150 210 190 Slowest Speed 240 | 160 240 190 Overloaded Moves . | . . . Propulsion Burnouts . | . . . Robots Hopped . | . . . Cave-ins Triggered . | . . . Exploration Rate (%) 52 | 5 71 80 Regions Visited 2 Branch Regions 1 Pre-discovered Areas 1 | . . 1 Known Exits Taken 1 | . 1 . Unknown Exits Taken 1 | 1 . . Scrap Searched 1 | . . 1 Spaces Dug 15 | . 15 . Terrain Destroyed 15 | . 15 . Melee 15 | . 15 . Projectile . | . . . AOE . | . . . Terrain Rammed . | . . . Walls Destroyed . | . . . Machines Disabled . | . . . Actions | -11 -10 -10 --------- Run | Yrd Mat Min Total 1302 | 67 856 379 Wait 49 | 1 48 . Move 1086 | 48 692 346 Hop . | . . . Pick Up 30 | 12 16 2 Fast Attach . | . . . Attach 11 | 6 5 . Detach . | . . . Swap 10 | . 4 6 Drop 10 | . 5 5 Fire 79 | . 63 16 Melee 25 | . 22 3 Ram . | . . . Kick 1 | . . 1 Crush 1 | . 1 . Escape Stasis . | . . . Rewire . | . . . Trap . | . . . Miscellaneous . | . . . Route ------- -11/Scrapyard -10/Materials (discovered 3 exits: [*Mat] / *Min x2) -10/Mines (discovered 2 exits: [*Mat x2]) History --------- Turn | Location | Event 8 | -11/Scrapyard | Discovered new exit (range 16) 93 | -11/Scrapyard | Entered Materials 322 | -10/Materials | Build established: Mutant 388 | -10/Materials | Discovered new exit (range 14) 639 | -10/Materials | Core integrity fell below 50% 1155 | -10/Materials | Discovered new exit (range 13) 1398 | -10/Materials | Identified exit to Mines 1862 | -10/Materials | Entered Mines 1870 | -10/Mines | Assisted by bots powering up and referring to "LRC-V3" 1950 | -10/Mines | Discovered new exit (range 5) 2086 | -10/Mines | Lost 3 allies 2116 | -10/Mines | Discovered new exit (range 10) 2117 | -10/Mines | Learned location of Storage (-7) 2291 | -10/Mines | Learned Materials terminal intel 2302 | -10/Mines | A weapon hastily lodged in a ceiling crevice suddenly fell to the ground 2420 | -10/Mines | Core integrity fell below 20% 2580 | -10/Mines | Destroyed by S-10 Pest with Light Assault Rifle Last Messages --------------- 02306_ Dropped Sml. Laser. 02306_ Acquired Mak. Spear. 02319_ WZ 5QQ%Y%E5DIYMS5C0= 02400_ S-10 Pest destroyed. 02400_ Switching to secondary target: S-10 Pest. 02403_ S-10 Pest destroyed. 02405_ Acquired 9 matter. 02409_ Dropped Lgt. Assault Rifle. 02417_ S-10 Pest destroyed. 02441_ Acquired 19 matter. 02445_ Dropped Lgt. Assault Rifle. 02447_ Acquired 15 matter. 02455_ System corrupted: Component data lost. 02528_ Searching scrap... 02528_ Found Med. Battery. 02528_ Found 48 Matter. 02529_ Acquired 4 matter. 02559_ K-01 Serf cleans the Pressure Siphon. 02578_ Destroyed Flight Unit. Map ----- +----------------------------------------------------+ | | | | | | | | | | | | | | | | | ?????????????????????????????????????????????????? | | ###?????????????????###??????????????????????????? | | ##???????????????# ##?????????????????????????? | | ##???????####### ##???###????????????####### | | #???????# ! ##??# #???????????# | | #??###### % #? #??????????# | | #### # #### #?????????# ##### | | ###### #???# #????????# #???# | | #????# #????# """ ####????# #???# | | # #### #?#### ##????# """ ##?### #???# | | # ##??# ### ##???? ## """ ### #???# | | # #???# ###??? # ###???# | | # #???#### ##?? #??#?# ####??? | | # #??????## #??# #????## #### #### | | # #???????## #### #?????# ##?# ## | | # #????????### ##ss#?????## ###??# | | # #??????????## ## ## s#??????## #????# | | # #???????????## ### ##@ #???##### ###### | | # #????????????####?# ## ##??# | | # ??????????????????# s #??# ########### | | # ?????????????????# #??????????????# #### | | ? ?????????????????# ???????????# #??# | | ??????????????????# """ ######??????????# #??# | | ??????????????????# """ ##??????????????? #??# | | ????????????????? """ ##????????????????###### | | ???????????????? """k#???????????????????## | | ??????????????? #### ??????????????????## | | ##????????????#????# ? #?????????????????## | | #?????????????????#?? #????????????????## | | #????????????????????# #??????????## #### | | #????????????????????# #?????????# | | #????????????????????# #?????????? ####### | | #????????????????????# ??????????????????# ### | | #????????????????????? ??????????????????# ??## | | ###??????????????????? ??????#####???#####????## | | #???????????????????????????? ??# ??????# | | #?????????????????????????????# #?# #??????# | | # #?????????????????????????????# ## #??????# | | # #??????????????????????????????# #??????# | | # #######???????????????????????## ##?????# | | # #??????????????????????## #?????# | | # #??????????????????????# ##????# | +----------------------------------------------------+ Best States ------------- Heat Dissipation 25 Energy Generation 10 Energy Capacity 250 Matter Stores 300 Matter Capacity 300 Sight Range 16 Terrain Scan Density 10 Propulsion Shielding 33 Evasion (%) 40 Targeting Accuracy 5 Recoil Reduction 2 Item Schematics ----------------- None Robot Schematics ------------------ None Fabricated ------------ Nothing Alien Tech Used ----------------- None Achievements -------------- None Challenges ------------ None Game ------ Seed ContainmentMicrowarpSpiker Manual? 0 Play Time 00:16:22 Cumulative 24.2 hours Start 2025.03.21 @ 13:42:04 End 2025.03.21 @ 13:55:08 Sessions 1 Manual Loads 0 Difficulty Rogue Special Mode None Game No. 41 Rogue 41 Adventurer 0 Explorer 0 Win Type - Total 0 Types 0/0/0/0/0/0/0/0/0 Lore% 13 Gallery% 23 Achievement% 22 Wizard Run 0 Options --------- Layout 1 ASCII 0 Keyboard 0 Movement Mouse Keybinds 0 Fullscreen 1 Font 32/SmallcapsGlow Map View 50x40 Zoom Use 0% Tactical HUD 1 Map Filters NONE Filters NONE Steam 1 RUN: cdd05086-73e9-4074-aa9c-48455e1b0f37